[Event "*** Titled Tuesday Blitz"]
[Site "Chess.com"]
[Date "2019.03.05"]
[Round "6"]
[White "Rashad_Zeynalli"]
[Black "Winehouse83"]
[Result "0-1"]
[WhiteElo "2396"]
[BlackElo "2520"]
[TimeControl "180+2"]
[EndTime "14:25:40 PST"]
[Termination "Winehouse83 won by resignation"]

1. e4 {[%clk 0:03:01.9]} 1... e5 {[%clk 0:02:59.6]} 2. Nf3 {[%clk 0:03:02.5]}
2... Nc6 {[%clk 0:03:01]} 3. Bb5 {[%clk 0:03:03.7]} 3... a6 {[%clk 0:03:01.8]}
4. Ba4 {[%clk 0:03:04.6]} 4... Nf6 {[%clk 0:03:02.5]} 5. O-O {[%clk 0:03:01.2]}
5... b5 {[%clk 0:03:03.5]} 6. Bb3 {[%clk 0:03:01.9]} 6... Bc5 {[%clk 0:03:05.1]}
7. c3 {[%clk 0:03:01.6]} 7... d6 {[%clk 0:03:06.5]} 8. d4 {[%clk 0:03:02]} 8...
Bb6 {[%clk 0:03:07.6]} 9. a4 {[%clk 0:03:02.5]} 9... Rb8 {[%clk 0:03:08.1]} 10.
Na3 {[%clk 0:03:02.8]} 10... Bg4 {[%clk 0:03:07.3]} 11. axb5 {[%clk 0:02:56.2]}
11... axb5 {[%clk 0:02:52.9]} 12. Nxb5 {[%clk 0:02:58.1]} 12... exd4 {[%clk
0:02:47.3]} 13. cxd4 {[%clk 0:02:55.2]} 13... O-O {[%clk 0:02:16.9]} 14. Be3
{[%clk 0:02:55.2]} 14... Re8 {[%clk 0:02:04.9]} 15. Nc3 {[%clk 0:02:53.2]} 15...
Nxd4 {[%clk 0:01:54.7]} 16. Bxd4 {[%clk 0:02:51.1]} 16... Bxd4 {[%clk
0:01:53.7]} 17. Bxf7+ {[%clk 0:02:52.3]} 17... Kxf7 {[%clk 0:01:52.3]} 18. Qxd4
{[%clk 0:02:53.4]} 18... Bxf3 {[%clk 0:01:49.3]} 19. gxf3 {[%clk 0:02:55.3]}
19... Rxb2 {[%clk 0:01:44]} 20. Ra7 {[%clk 0:02:54.9]} 20... Kg8 {[%clk
0:01:20.2]} 21. Qc4+ {[%clk 0:02:53]} 21... Kh8 {[%clk 0:01:16.6]} 22. Rxc7
{[%clk 0:02:53.3]} 22... Nh5 {[%clk 0:01:12.3]} 23. Kh1 {[%clk 0:02:45.5]} 23...
Rf8 {[%clk 0:00:40.9]} 24. Nd5 {[%clk 0:02:40.2]} 24... Qh4 {[%clk 0:00:36.6]}
25. Rc8 {[%clk 0:02:38.3]} 25... Rb8 {[%clk 0:00:33.3]} 26. Rc1 {[%clk
0:02:34.8]} 26... Qxf2 {[%clk 0:00:20.9]} 27. Rxf8+ {[%clk 0:01:52.8]} 27...
Rxf8 {[%clk 0:00:20.2]} 28. Rf1 {[%clk 0:01:54.3]} 28... Qh4 {[%clk 0:00:13.5]}
29. Rg1 {[%clk 0:01:50.7]} 29... Qh3 {[%clk 0:00:13.1]} 30. Qf1 {[%clk
0:01:32.3]} 30... Qxf3+ {[%clk 0:00:12.6]} 31. Qxf3 {[%clk 0:01:32.8]} 31...
Rxf3 {[%clk 0:00:14.5]} 32. Ra1 {[%clk 0:01:31.4]} 32... h6 {[%clk 0:00:15.4]}
33. Ra6 {[%clk 0:01:31.5]} 33... Nf4 {[%clk 0:00:15.1]} 34. Kg1 {[%clk
0:01:28.8]} 34... Nxd5 {[%clk 0:00:13.9]} 35. exd5 {[%clk 0:01:30.3]} 35... Rf6
{[%clk 0:00:15.5]} 36. Kg2 {[%clk 0:01:31.5]} 36... Kh7 {[%clk 0:00:16.7]} 37.
Kg3 {[%clk 0:01:32.9]} 37... Kg6 {[%clk 0:00:18.3]} 38. Kg4 {[%clk 0:01:34.3]}
38... h5+ {[%clk 0:00:18.9]} 39. Kg3 {[%clk 0:01:35.2]} 39... Kf5 {[%clk
0:00:19.9]} 40. Ra7 {[%clk 0:01:36.5]} 40... g5 {[%clk 0:00:19.4]} 41. Re7
{[%clk 0:01:37.7]} 41... h4+ {[%clk 0:00:20.4]} 42. Kf3 {[%clk 0:01:38.4]} 42...
g4+ {[%clk 0:00:21.4]} 43. Ke3 {[%clk 0:01:39.5]} 43... Kg6 {[%clk 0:00:19.8]}
44. Re8 {[%clk 0:01:34.5]} 44... Kg5 {[%clk 0:00:21]} 45. Rg8+ {[%clk
0:01:34.5]} 45... Rg6 {[%clk 0:00:22.4]} 46. Rf8 {[%clk 0:01:28.7]} 46... g3
{[%clk 0:00:21.8]} 47. hxg3 {[%clk 0:01:26.2]} 47... hxg3 {[%clk 0:00:22]} 48.
Rf1 {[%clk 0:01:20.3]} 48... Kg4 {[%clk 0:00:22.1]} 49. Rh1 {[%clk 0:01:19.3]}
49... g2 {[%clk 0:00:22.2]} 50. Rg1 {[%clk 0:01:20.4]} 50... Kg3 {[%clk
0:00:23.6]} 51. Ke2 {[%clk 0:01:21.9]} 51... Kh2 {[%clk 0:00:24.6]} 52. Kf2
{[%clk 0:01:23]} 52... Rf6+ {[%clk 0:00:26]} 0-1

[Event "*** Titled Tuesday Blitz"]
[Site "Chess.com"]
[Date "2019.03.05"]
[Round "6"]
[White "eljanov"]
[Black "UCantHandleDenker"]
[Result "1-0"]
[WhiteElo "2766"]
[BlackElo "2540"]
[TimeControl "180+2"]
[EndTime "14:25:44 PST"]
[Termination "eljanov won on time"]

1. e4 {[%clk 0:03:00.9]} 1... d6 {[%clk 0:02:59]} 2. d4 {[%clk 0:03:01.2]} 2...
Nf6 {[%clk 0:02:59.2]} 3. Nc3 {[%clk 0:03:02.6]} 3... g6 {[%clk 0:02:59.6]} 4.
Be3 {[%clk 0:03:01.5]} 4... Bg7 {[%clk 0:02:58.8]} 5. Qd2 {[%clk 0:03:01.6]}
5... c6 {[%clk 0:02:59.3]} 6. f3 {[%clk 0:02:54.6]} 6... b5 {[%clk 0:02:58.7]}
7. g4 {[%clk 0:02:46.8]} 7... h5 {[%clk 0:02:57.8]} 8. g5 {[%clk 0:02:46.8]}
8... Nfd7 {[%clk 0:02:59.2]} 9. h4 {[%clk 0:02:44.1]} 9... Bb7 {[%clk
0:02:50.4]} 10. Nge2 {[%clk 0:02:43.8]} 10... Nb6 {[%clk 0:02:48.6]} 11. Ng3
{[%clk 0:02:44.9]} 11... N8d7 {[%clk 0:02:42.5]} 12. a4 {[%clk 0:02:37]} 12...
b4 {[%clk 0:02:41.2]} 13. Nd1 {[%clk 0:02:37.5]} 13... a5 {[%clk 0:02:41.9]} 14.
Nf2 {[%clk 0:02:26.7]} 14... Qc7 {[%clk 0:02:38.8]} 15. f4 {[%clk 0:02:12.8]}
15... c5 {[%clk 0:02:37.9]} 16. Bb5 {[%clk 0:02:09.5]} 16... O-O {[%clk
0:02:35.5]} 17. d5 {[%clk 0:01:33]} 17... Bxb2 {[%clk 0:02:27.2]} 18. O-O {[%clk
0:01:34.1]} 18... Ba6 {[%clk 0:02:18.7]} 19. Bxa6 {[%clk 0:01:34]} 19... Rxa6
{[%clk 0:02:19.1]} 20. Qe2 {[%clk 0:01:35.1]} 20... c4 {[%clk 0:02:10.5]} 21.
Rae1 {[%clk 0:01:28.6]} 21... Nxa4 {[%clk 0:01:52]} 22. Nxh5 {[%clk 0:01:29.4]}
22... Ndc5 {[%clk 0:01:38.6]} 23. Ng3 {[%clk 0:01:20.9]} 23... Qd7 {[%clk
0:01:24.5]} 24. h5 {[%clk 0:01:19.1]} 24... Nc3 {[%clk 0:00:55.9]} 25. Qf3
{[%clk 0:01:19.5]} 25... a4 {[%clk 0:00:53.5]} 26. Kg2 {[%clk 0:01:20.1]} 26...
a3 {[%clk 0:00:40.9]} 27. f5 {[%clk 0:01:21.2]} 27... a2 {[%clk 0:00:39.7]} 28.
Ng4 {[%clk 0:01:11.4]} 28... N3xe4 {[%clk 0:00:27]} 29. fxg6 {[%clk 0:00:59.4]}
29... f5 {[%clk 0:00:13]} 30. Nxf5 {[%clk 0:00:55.6]} 30... Rxf5 {[%clk
0:00:02.7]} 31. Nh6+ {[%clk 0:00:55.2]} 31... Kh8 {[%clk 0:00:03.5]} 32. Qxf5
{[%clk 0:00:48]} 32... Qxf5 {[%clk 0:00:04]} 33. Rxf5 {[%clk 0:00:49.4]} 33...
Ra8 {[%clk 0:00:05.2]} 34. Rf7 {[%clk 0:00:50.2]} 34... Bg7 {[%clk 0:00:05.7]}
35. Nf5 {[%clk 0:00:48.3]} 35... a1=Q {[%clk 0:00:05.8]} 36. Rxa1 {[%clk
0:00:48.9]} 36... Bxa1 {[%clk 0:00:05.4]} 37. Nxe7 {[%clk 0:00:40.9]} 37... Bg7
{[%clk 0:00:02.6]} 38. Bd4 {[%clk 0:00:39.3]} 1-0

[Event "*** Titled Tuesday Blitz"]
[Site "Chess.com"]
[Date "2019.03.05"]
[Round "6"]
[White "salomez"]
[Black "BASSU1"]
[Result "0-1"]
[WhiteElo "2093"]
[BlackElo "2096"]
[TimeControl "180+2"]
[EndTime "14:25:50 PST"]
[Termination "BASSU1 won by checkmate"]

1. b3 {[%clk 0:03:01.3]} 1... e5 {[%clk 0:03:00.3]} 2. Bb2 {[%clk 0:03:00.5]}
2... d6 {[%clk 0:02:59.6]} 3. g3 {[%clk 0:03:00.5]} 3... g6 {[%clk 0:03:00.6]}
4. Bg2 {[%clk 0:03:01.2]} 4... Bg7 {[%clk 0:03:02.5]} 5. e3 {[%clk 0:03:02.6]}
5... Nf6 {[%clk 0:03:03.3]} 6. Ne2 {[%clk 0:03:04]} 6... O-O {[%clk 0:03:04.2]}
7. O-O {[%clk 0:03:04.7]} 7... Re8 {[%clk 0:03:04.8]} 8. d3 {[%clk 0:03:06.2]}
8... c6 {[%clk 0:03:06]} 9. Nd2 {[%clk 0:03:07.7]} 9... d5 {[%clk 0:03:07.5]}
10. e4 {[%clk 0:03:08.8]} 10... d4 {[%clk 0:03:08.5]} 11. f4 {[%clk 0:03:08.5]}
11... Ng4 {[%clk 0:03:09.6]} 12. Qc1 {[%clk 0:02:51]} 12... Ne3 {[%clk
0:03:09.4]} 13. Rf2 {[%clk 0:02:51.9]} 13... f6 {[%clk 0:03:07.2]} 14. Bf3
{[%clk 0:02:48.7]} 14... Bg4 {[%clk 0:03:05]} 15. Nc4 {[%clk 0:02:46.7]} 15...
Nxc4 {[%clk 0:03:01.6]} 16. Bxg4 {[%clk 0:02:44.1]} 16... Ne3 {[%clk 0:03:00.2]}
17. Bf3 {[%clk 0:02:44.4]} 17... Nd7 {[%clk 0:03:01.3]} 18. Nxd4 {[%clk
0:02:38]} 18... exd4 {[%clk 0:02:39]} 19. Bxd4 {[%clk 0:02:35.2]} 19... Nxc2
{[%clk 0:02:40]} 20. Qxc2 {[%clk 0:02:32.1]} 20... Ne5 {[%clk 0:02:40.8]} 21.
Qc3 {[%clk 0:02:15.9]} 21... Nxf3+ {[%clk 0:02:15]} 22. Rxf3 {[%clk 0:02:14.3]}
22... Rc8 {[%clk 0:02:11.3]} 23. Rc1 {[%clk 0:02:09.5]} 23... b6 {[%clk
0:02:09.1]} 24. Qc4+ {[%clk 0:01:43.5]} 24... Kh8 {[%clk 0:02:09.4]} 25. Bb2
{[%clk 0:01:41.4]} 25... Qd7 {[%clk 0:02:10.2]} 26. Re1 {[%clk 0:01:35.7]} 26...
Rcd8 {[%clk 0:02:07.8]} 27. d4 {[%clk 0:01:36.2]} 27... Qb7 {[%clk 0:01:41.7]}
28. Rc3 {[%clk 0:01:28.5]} 28... Rc8 {[%clk 0:01:28.5]} 29. e5 {[%clk
0:01:21.4]} 29... b5 {[%clk 0:01:26.2]} 30. Qc5 {[%clk 0:01:19.4]} 30... Bf8
{[%clk 0:01:25.6]} 31. Qxf8+ {[%clk 0:00:20.6]} 31... Rxf8 {[%clk 0:01:24.5]}
32. Rc5 {[%clk 0:00:18.2]} 32... Rfe8 {[%clk 0:01:24.2]} 33. Rec1 {[%clk
0:00:15.5]} 33... fxe5 {[%clk 0:01:24.1]} 34. dxe5 {[%clk 0:00:15.7]} 34... Red8
{[%clk 0:01:21.8]} 35. R5c2 {[%clk 0:00:11.6]} 35... Rd5 {[%clk 0:01:22.2]} 36.
e6+ {[%clk 0:00:11.7]} 36... Kg8 {[%clk 0:01:23.3]} 37. Re1 {[%clk 0:00:11.7]}
37... Re8 {[%clk 0:01:24.2]} 38. Rce2 {[%clk 0:00:12.4]} 38... c5 {[%clk
0:01:23.7]} 39. h3 {[%clk 0:00:10.1]} 39... c4 {[%clk 0:01:24.5]} 40. g4 {[%clk
0:00:10.9]} 40... Qb6+ {[%clk 0:01:24.6]} 41. Kg2 {[%clk 0:00:11.5]} 41... Qc6
{[%clk 0:01:23.5]} 42. Kg3 {[%clk 0:00:11.8]} 42... c3 {[%clk 0:01:24.4]} 43.
Bc1 {[%clk 0:00:12.2]} 43... Rd3+ {[%clk 0:01:25.9]} 44. Kh4 {[%clk 0:00:12.4]}
44... Qf3 {[%clk 0:01:26.5]} 45. Re3 {[%clk 0:00:07.9]} 45... Rxe3 {[%clk
0:01:26.9]} 46. Rxe3 {[%clk 0:00:08.7]} 46... Qf2+ {[%clk 0:01:27.2]} 47. Kg5
{[%clk 0:00:08.7]} 47... Kg7 {[%clk 0:01:28.6]} 48. Rxc3 {[%clk 0:00:05.4]}
48... h6# {[%clk 0:01:30.5]} 0-1

[Event "*** Titled Tuesday Blitz"]
[Site "Chess.com"]
[Date "2019.03.05"]
[Round "6"]
[White "Perecke"]
[Black "BillForster"]
[Result "1-0"]
[WhiteElo "2046"]
[BlackElo "1729"]
[TimeControl "180+2"]
[EndTime "14:25:55 PST"]
[Termination "Perecke won by resignation"]

1. e4 {[%clk 0:03:01.9]} 1... c5 {[%clk 0:03:00.3]} 2. Nf3 {[%clk 0:02:38.6]}
2... a6 {[%clk 0:03:00.9]} 3. c4 {[%clk 0:02:35.8]} 3... g6 {[%clk 0:02:55.1]}
4. d4 {[%clk 0:02:32.3]} 4... cxd4 {[%clk 0:02:53.4]} 5. Nxd4 {[%clk 0:02:34.2]}
5... Bg7 {[%clk 0:02:54]} 6. Be3 {[%clk 0:02:35.4]} 6... Nc6 {[%clk 0:02:50.9]}
7. Nc3 {[%clk 0:02:34]} 7... Nf6 {[%clk 0:02:47.3]} 8. Be2 {[%clk 0:02:34.5]}
8... O-O {[%clk 0:02:41.6]} 9. O-O {[%clk 0:02:34.9]} 9... d6 {[%clk 0:02:39.5]}
10. Rc1 {[%clk 0:02:32.4]} 10... Qa5 {[%clk 0:02:34.5]} 11. f4 {[%clk
0:02:32.2]} 11... Nxd4 {[%clk 0:02:12.1]} 12. Bxd4 {[%clk 0:02:30.7]} 12... b5
{[%clk 0:02:02]} 13. e5 {[%clk 0:02:31.3]} 13... dxe5 {[%clk 0:01:50.5]} 14.
fxe5 {[%clk 0:02:29.9]} 14... Nd7 {[%clk 0:01:25]} 15. e6 {[%clk 0:02:29.4]}
15... fxe6 {[%clk 0:01:23.7]} 16. Bxg7 {[%clk 0:02:30]} 16... Kxg7 {[%clk
0:01:16]} 17. Rxf8 {[%clk 0:02:27.9]} 17... Nxf8 {[%clk 0:01:15.2]} 18. Qd4+
{[%clk 0:02:27.5]} 18... Kg8 {[%clk 0:01:08.6]} 19. cxb5 {[%clk 0:02:26]} 19...
Bb7 {[%clk 0:00:52.9]} 20. b4 {[%clk 0:02:00.2]} 20... Qa3 {[%clk 0:00:40.4]}
21. Rf1 {[%clk 0:01:52.8]} 21... axb5 {[%clk 0:00:29.3]} 22. Bxb5 {[%clk
0:01:41.8]} 22... Qb2 {[%clk 0:00:22.6]} 23. Rf2 {[%clk 0:00:52.6]} 23... Qc1+
{[%clk 0:00:20.9]} 24. Bf1 {[%clk 0:00:53.3]} 24... Rc8 {[%clk 0:00:15.6]} 25.
Ne4 {[%clk 0:00:50.3]} 25... Rc2 {[%clk 0:00:12.5]} 26. Rxf8+ {[%clk 0:00:35]}
26... Kxf8 {[%clk 0:00:12]} 27. Qh8+ {[%clk 0:00:36.4]} 27... Kf7 {[%clk
0:00:12.2]} 28. Qxh7+ {[%clk 0:00:37.1]} 28... Ke8 {[%clk 0:00:12.3]} 29. Qxg6+
{[%clk 0:00:37.8]} 29... Kd8 {[%clk 0:00:10.1]} 30. Qg8+ {[%clk 0:00:35]} 30...
Kc7 {[%clk 0:00:11]} 31. Qg3+ {[%clk 0:00:36.3]} 31... Kd8 {[%clk 0:00:09.9]}
32. Qb8+ {[%clk 0:00:35.2]} 32... Bc8 {[%clk 0:00:08.2]} 33. Qb6+ {[%clk
0:00:30]} 33... Rc7 {[%clk 0:00:08.8]} 34. Qd4+ {[%clk 0:00:30.1]} 34... Rd7
{[%clk 0:00:08.1]} 35. Qh8+ {[%clk 0:00:30.9]} 35... Kc7 {[%clk 0:00:07.9]} 36.
Qe5+ {[%clk 0:00:32]} 36... Kb7 {[%clk 0:00:05.9]} 37. Nc5+ {[%clk 0:00:28.8]}
37... Ka7 {[%clk 0:00:05.3]} 38. Nxd7 {[%clk 0:00:28.2]} 38... Bxd7 {[%clk
0:00:07.2]} 39. Qd4+ {[%clk 0:00:29.4]} 39... Kb8 {[%clk 0:00:06.8]} 40. Qxd7
{[%clk 0:00:29.5]} 1-0

[Event "*** Titled Tuesday Blitz"]
[Site "Chess.com"]
[Date "2019.03.05"]
[Round "6"]
[White "Chessialist"]
[Black "mikhaillushenkov"]
[Result "0-1"]
[WhiteElo "2492"]
[BlackElo "2614"]
[TimeControl "180+2"]
[EndTime "14:26:00 PST"]
[Termination "mikhaillushenkov won by checkmate"]

1. c4 {[%clk 0:03:01.9]} 1... e6 {[%clk 0:02:56.4]} 2. g3 {[%clk 0:03:02.4]}
2... d5 {[%clk 0:02:56.9]} 3. Bg2 {[%clk 0:03:04.3]} 3... c6 {[%clk 0:02:56.2]}
4. Nf3 {[%clk 0:03:05.2]} 4... Nf6 {[%clk 0:02:56.8]} 5. b3 {[%clk 0:03:06.6]}
5... Nbd7 {[%clk 0:02:54.8]} 6. O-O {[%clk 0:03:07.7]} 6... Bd6 {[%clk
0:02:51.8]} 7. Bb2 {[%clk 0:03:08.6]} 7... O-O {[%clk 0:02:50.4]} 8. e3 {[%clk
0:03:09.6]} 8... e5 {[%clk 0:02:38.7]} 9. d4 {[%clk 0:03:00.5]} 9... e4 {[%clk
0:02:37.3]} 10. Ne5 {[%clk 0:03:01.5]} 10... Qe7 {[%clk 0:02:36.5]} 11. Nxd7
{[%clk 0:02:58.8]} 11... Bxd7 {[%clk 0:02:37.3]} 12. Nc3 {[%clk 0:02:58.7]}
12... h5 {[%clk 0:02:30.2]} 13. f4 {[%clk 0:02:52.7]} 13... g6 {[%clk
0:02:22.3]} 14. Qd2 {[%clk 0:02:47.3]} 14... Kg7 {[%clk 0:02:18.2]} 15. c5
{[%clk 0:02:42.9]} 15... Bc7 {[%clk 0:02:16]} 16. b4 {[%clk 0:02:42.3]} 16... h4
{[%clk 0:02:15]} 17. a4 {[%clk 0:02:37.8]} 17... Rh8 {[%clk 0:02:10.5]} 18. b5
{[%clk 0:02:35.9]} 18... hxg3 {[%clk 0:02:07.1]} 19. hxg3 {[%clk 0:02:35.6]}
19... Ng4 {[%clk 0:02:06.8]} 20. Nxe4 {[%clk 0:02:30.9]} 20... f5 {[%clk
0:01:22.5]} 21. bxc6 {[%clk 0:02:24.3]} 21... bxc6 {[%clk 0:01:20.9]} 22. Nd6
{[%clk 0:02:25.4]} 22... Kg8 {[%clk 0:01:12]} 23. Rfe1 {[%clk 0:02:10.8]} 23...
Qh7 {[%clk 0:01:08.3]} 24. Bf3 {[%clk 0:02:10]} 24... Ba5 {[%clk 0:01:07.2]} 25.
Qg2 {[%clk 0:02:09.7]} 25... Bxe1 {[%clk 0:01:07]} 26. Rxe1 {[%clk 0:02:11.6]}
26... Rb8 {[%clk 0:01:07.5]} 27. Bxd5+ {[%clk 0:02:11.7]} 27... cxd5 {[%clk
0:01:02.3]} 28. Qxd5+ {[%clk 0:02:11.7]} 28... Kf8 {[%clk 0:01:03.7]} 29. Re2
{[%clk 0:01:59.7]} 29... Be6 {[%clk 0:00:38.9]} 30. Qf3 {[%clk 0:01:51.9]} 30...
Nf6 {[%clk 0:00:32.1]} 31. c6 {[%clk 0:01:19.5]} 31... Bd5 {[%clk 0:00:31.4]}
32. e4 {[%clk 0:01:20.6]} 32... Nxe4 {[%clk 0:00:28.9]} 33. Nb5 {[%clk
0:00:47.3]} 33... Nf6 {[%clk 0:00:20.7]} 34. Qa3+ {[%clk 0:00:46.5]} 34... Kg8
{[%clk 0:00:22.1]} 35. Kf2 {[%clk 0:00:37.9]} 35... Qh1 {[%clk 0:00:20.3]} 36.
Ke3 {[%clk 0:00:18.5]} 36... Qd1 {[%clk 0:00:20.9]} 37. Qd6 {[%clk 0:00:12.3]}
37... Ng4# {[%clk 0:00:20.6]} 0-1

[Event "*** Titled Tuesday Blitz"]
[Site "Chess.com"]
[Date "2019.03.05"]
[Round "6"]
[White "gmjoey1"]
[Black "wonderfultime"]
[Result "0-1"]
[WhiteElo "2724"]
[BlackElo "2916"]
[TimeControl "180+2"]
[EndTime "14:26:11 PST"]
[Termination "wonderfultime won by checkmate"]

1. e4 {[%clk 0:03:01.9]} 1... c5 {[%clk 0:02:55.8]} 2. Nf3 {[%clk 0:03:01.3]}
2... Nf6 {[%clk 0:02:56.7]} 3. e5 {[%clk 0:03:00.3]} 3... Nd5 {[%clk 0:02:57.8]}
4. d4 {[%clk 0:03:01.4]} 4... cxd4 {[%clk 0:02:57.2]} 5. Bc4 {[%clk 0:03:01.1]}
5... Nb6 {[%clk 0:02:46]} 6. Bb3 {[%clk 0:03:01.7]} 6... Nc6 {[%clk 0:02:45.7]}
7. c3 {[%clk 0:03:02.5]} 7... d6 {[%clk 0:02:29.9]} 8. exd6 {[%clk 0:03:03]}
8... e6 {[%clk 0:02:28.6]} 9. O-O {[%clk 0:02:57]} 9... Bxd6 {[%clk 0:02:29.2]}
10. Qe2 {[%clk 0:02:53.3]} 10... d3 {[%clk 0:02:27.8]} 11. Qe4 {[%clk
0:02:52.9]} 11... h6 {[%clk 0:02:19.7]} 12. Rd1 {[%clk 0:02:52.9]} 12... O-O
{[%clk 0:02:04.9]} 13. Rxd3 {[%clk 0:02:53]} 13... Qe7 {[%clk 0:02:05.7]} 14.
Bc2 {[%clk 0:02:48.9]} 14... f5 {[%clk 0:02:04.3]} 15. Qe2 {[%clk 0:02:48.2]}
15... e5 {[%clk 0:02:02.7]} 16. Nh4 {[%clk 0:02:21]} 16... Rf6 {[%clk
0:01:37.3]} 17. Bb3+ {[%clk 0:02:10.3]} 17... Be6 {[%clk 0:01:37.9]} 18. Qh5
{[%clk 0:02:04.8]} 18... Bxb3 {[%clk 0:01:26.9]} 19. axb3 {[%clk 0:02:02.7]}
19... e4 {[%clk 0:01:28.3]} 20. Rd1 {[%clk 0:01:50.3]} 20... Qe6 {[%clk
0:01:21.2]} 21. Be3 {[%clk 0:01:35.4]} 21... Nd5 {[%clk 0:01:17.5]} 22. Nd2
{[%clk 0:01:14.3]} 22... Nxe3 {[%clk 0:01:12.7]} 23. fxe3 {[%clk 0:01:16.2]}
23... g5 {[%clk 0:01:10.8]} 24. Nc4 {[%clk 0:01:13.6]} 24... Bf8 {[%clk
0:01:08]} 25. Nb6 {[%clk 0:01:09.2]} 25... Rd8 {[%clk 0:01:05.9]} 26. Rxd8
{[%clk 0:00:49.2]} 26... Nxd8 {[%clk 0:01:07.8]} 27. Nc4 {[%clk 0:00:50.1]}
27... gxh4 {[%clk 0:01:06.7]} 28. Rxa7 {[%clk 0:00:50.8]} 28... f4 {[%clk
0:00:42.7]} 29. Ra8 {[%clk 0:00:46.1]} 29... Nf7 {[%clk 0:00:41.9]} 30. Qc5
{[%clk 0:00:33.2]} 30... Ng5 {[%clk 0:00:33.4]} 31. exf4 {[%clk 0:00:30.9]}
31... Rxf4 {[%clk 0:00:35.3]} 32. Ne3 {[%clk 0:00:31.2]} 32... Rf7 {[%clk
0:00:31.8]} 33. h3 {[%clk 0:00:22.7]} 33... Qf6 {[%clk 0:00:31.8]} 34. Ng4
{[%clk 0:00:18.9]} 34... Qf1+ {[%clk 0:00:30.7]} 35. Kh2 {[%clk 0:00:20.3]}
35... Qf4+ {[%clk 0:00:32.6]} 36. Kg1 {[%clk 0:00:20]} 36... Kh7 {[%clk
0:00:34.1]} 37. Qc4 {[%clk 0:00:19]} 37... e3 {[%clk 0:00:24.9]} 38. Qd3+ {[%clk
0:00:15.4]} 38... Qe4 {[%clk 0:00:26.2]} 39. Qe2 {[%clk 0:00:10]} 39... Bc5
{[%clk 0:00:26.9]} 40. b4 {[%clk 0:00:09.7]} 40... Bb6 {[%clk 0:00:28.4]} 41. c4
{[%clk 0:00:05.4]} 41... Rf2 {[%clk 0:00:24.8]} 42. c5 {[%clk 0:00:03.6]} 42...
Qxg2# {[%clk 0:00:25.2]} 0-1

[Event "*** Titled Tuesday Blitz"]
[Site "Chess.com"]
[Date "2019.03.05"]
[Round "6"]
[White "WPWPWP-2015"]
[Black "Keaton87"]
[Result "0-1"]
[WhiteElo "2394"]
[BlackElo "2541"]
[TimeControl "180+2"]
[EndTime "14:26:12 PST"]
[Termination "Keaton87 won by resignation"]

1. e4 {[%clk 0:03:01.9]} 1... c5 {[%clk 0:03:00.8]} 2. Nf3 {[%clk 0:03:01.8]}
2... e6 {[%clk 0:03:02.1]} 3. d4 {[%clk 0:03:02.2]} 3... cxd4 {[%clk 0:03:03.3]}
4. Nxd4 {[%clk 0:03:03.4]} 4... a6 {[%clk 0:03:04.8]} 5. Bd3 {[%clk 0:03:03.8]}
5... Bc5 {[%clk 0:03:04.8]} 6. Nb3 {[%clk 0:03:03.9]} 6... Be7 {[%clk
0:03:05.9]} 7. O-O {[%clk 0:03:04.8]} 7... d6 {[%clk 0:03:03.7]} 8. Be3 {[%clk
0:03:05.7]} 8... Nf6 {[%clk 0:03:04.1]} 9. Nc3 {[%clk 0:02:45.8]} 9... Nbd7
{[%clk 0:03:03.8]} 10. f4 {[%clk 0:02:46]} 10... Qc7 {[%clk 0:03:04.8]} 11. Kh1
{[%clk 0:02:46.2]} 11... b5 {[%clk 0:03:03.2]} 12. a4 {[%clk 0:02:45.5]} 12...
b4 {[%clk 0:03:03.8]} 13. Ne2 {[%clk 0:02:44.8]} 13... Bb7 {[%clk 0:03:03.3]}
14. Nd2 {[%clk 0:02:45.9]} 14... Nc5 {[%clk 0:03:00.2]} 15. Ng3 {[%clk 0:02:46]}
15... h5 {[%clk 0:02:59.7]} 16. e5 {[%clk 0:02:36.8]} 16... dxe5 {[%clk
0:02:58.2]} 17. fxe5 {[%clk 0:02:37.5]} 17... Ng4 {[%clk 0:02:56.4]} 18. Bf4
{[%clk 0:02:33.5]} 18... Nxd3 {[%clk 0:02:51.2]} 19. cxd3 {[%clk 0:02:33.9]}
19... Qc6 {[%clk 0:02:41.8]} 20. Nde4 {[%clk 0:02:33]} 20... Qd5 {[%clk
0:02:36.2]} 21. Nxh5 {[%clk 0:02:22.2]} 21... Nxe5 {[%clk 0:02:22.6]} 22. Nxg7+
{[%clk 0:02:05.6]} 22... Kf8 {[%clk 0:02:23.4]} 23. Qe1 {[%clk 0:01:16.5]} 23...
Nxd3 {[%clk 0:02:17.3]} 24. Qg3 {[%clk 0:00:57.8]} 24... Qxe4 {[%clk 0:02:17.4]}
25. Nxe6+ {[%clk 0:00:55.2]} 25... Qxe6 {[%clk 0:01:58.8]} 26. Qxd3 {[%clk
0:00:54.9]} 26... Rd8 {[%clk 0:01:43.7]} 27. Qc2 {[%clk 0:00:39.2]} 27... Qe4
{[%clk 0:01:41.8]} 28. Qf2 {[%clk 0:00:36.1]} 28... Qg6 {[%clk 0:01:03]} 29.
Rae1 {[%clk 0:00:34.4]} 29... Rg8 {[%clk 0:01:00.1]} 30. Bg3 {[%clk 0:00:18]}
30... Bd5 {[%clk 0:00:37.1]} 31. Rxe7 {[%clk 0:00:16.1]} 31... Kxe7 {[%clk
0:00:35.2]} 32. Qc5+ {[%clk 0:00:14.2]} 32... Ke8 {[%clk 0:00:32.1]} 33. Re1+
{[%clk 0:00:13.4]} 33... Be6 {[%clk 0:00:32.9]} 34. Qc6+ {[%clk 0:00:11.7]}
34... Kf8 {[%clk 0:00:33.5]} 35. Qc5+ {[%clk 0:00:11.8]} 35... Kg7 {[%clk
0:00:33.2]} 36. Qe5+ {[%clk 0:00:09.9]} 36... Kh7 {[%clk 0:00:31.2]} 37. Qf4
{[%clk 0:00:07.6]} 37... Rd5 {[%clk 0:00:30]} 38. Qf3 {[%clk 0:00:05.1]} 38...
Rf5 {[%clk 0:00:30]} 39. Qe3 {[%clk 0:00:04.9]} 39... Qg5 {[%clk 0:00:29.3]} 40.
Qa7 {[%clk 0:00:05.2]} 40... Qh5 {[%clk 0:00:24.3]} 41. Qb6 {[%clk 0:00:03.6]}
41... Rxg3 {[%clk 0:00:24.5]} 42. Qg1 {[%clk 0:00:02.6]} 42... Rg7 {[%clk
0:00:24.3]} 43. Qe3 {[%clk 0:00:03.2]} 43... Bd5 {[%clk 0:00:24.6]} 44. Rg1
{[%clk 0:00:03.9]} 0-1